bitfinex-derivatives/quotes_BTCF0:USTF0_20250527
["timestamp","ask_amount","ask_price","bid_price","bid_amount"]
[1748356019746,1.72951998,109630.0,109620.0,0.0023718]
[1748356019918,1.72951998,109630.0,109620.0,0.01595069]
[1748356020228,1.44237375,109630.0,109620.0,0.01595069]
[1748356020431,1.44237375,109630.0,109620.0,0.0395718]
[1748356020619,1.44237375,109630.0,109620.0,0.05312662]
[1748356020620,0.96569375,109630.0,109620.0,0.05312662]
[1748356020823,0.8751446,109630.0,109620.0,0.27328802]
[1748356021129,0.8751446,109630.0,109620.0,0.09092662]
[1748356021130,1.3145446,109630.0,109620.0,0.09092662]
[1748356021332,1.3524446,109630.0,109620.0,0.0773718]
[1748356021630,1.3527246,109630.0,109620.0,0.0772518]
[1748356021821,1.3527246,109630.0,109620.0,0.00256654]
[1748356021822,0.8751446,109630.0,109620.0,0.00256654]
[1748356022023,1.3919246,109630.0,109620.0,0.11076654]
[1748356022223,1.3909246,109630.0,109620.0,0.14798654]
[1748356022436,1.3919246,109630.0,109620.0,0.0888424]
[1748356022630,0.8751446,109630.0,109620.0,0.27272508]
[1748356022936,0.5143446,109630.0,109620.0,0.27284508]
[1748356023141,0.5143446,109630.0,109620.0,0.38102626]
[1748356023326,0.5143446,109630.0,109620.0,0.84182626]
[1748356023327,0.3043446,109630.0,109620.0,0.84182626]
[1748356023522,0.122,109630.0,109620.0,0.84182626]
[1748356023842,0.122,109630.0,109620.0,1.37877249]
[1748356023843,0.002,109630.0,109620.0,1.37877249]
[1748356024140,0.002,109630.0,109620.0,1.19233705]
[1748356024328,0.002,109630.0,109620.0,1.40806328]
[1748356024534,0.002,109630.0,109620.0,1.04902957]
[1748356025030,0.002,109630.0,109620.0,1.04881949]
[1748356025234,0.27364289,109640.0,109630.0,0.1823448]
[1748356025235,0.00013629,109640.0,109630.0,0.1823448]
[1748356025439,0.00013629,109640.0,109630.0,0.83887103]
[1748356025628,0.00013629,109640.0,109630.0,0.96719103]
[1748356026031,0.00013629,109640.0,109630.0,0.98209687]
[1748356026335,0.0013696,109650.0,109640.0,0.2823281]
[1748356026539,0.0013696,109650.0,109640.0,0.85507254]
[1748356026735,0.0013696,109650.0,109640.0,1.20135478]
[1748356026932,0.00136942,109670.0,109660.0,0.1822948]
[1748356027139,0.00136942,109670.0,109660.0,0.7514148]
[1748356027140,0.53364762,109670.0,109660.0,0.7514148]
[1748356027336,0.00136942,109670.0,109660.0,1.30794103]
[1748356027537,0.00136942,109670.0,109660.0,1.31794103]
[1748356027837,0.00136911,109690.0,109680.0,0.1822616]
[1748356028048,0.54441411,109690.0,109680.0,0.1803036]
[1748356028239,0.54441411,109690.0,109680.0,0.4708852]
[1748356028240,0.87441411,109690.0,109680.0,0.4708852]
[1748356028438,0.87441411,109690.0,109680.0,0.4710052]
[1748356028439,0.55231411,109690.0,109680.0,0.4710052]
[1748356028639,0.00136911,109690.0,109680.0,0.4710052]
[1748356028838,0.08136911,109690.0,109680.0,0.8318052]
[1748356029138,0.08436911,109690.0,109680.0,0.8318052]
[1748356029346,0.26661411,109690.0,109680.0,0.8318052]
[1748356029535,0.26661411,109690.0,109680.0,0.84573648]
[1748356029730,0.08436911,109690.0,109680.0,0.84673648]
[1748356029935,0.08436911,109690.0,109680.0,1.04246271]
[1748356029936,0.00536911,109690.0,109680.0,1.04246271]
[1748356030740,0.18761411,109690.0,109680.0,1.04246271]
[1748356030945,0.18761411,109690.0,109680.0,0.88573648]
[1748356031245,0.18761411,109690.0,109680.0,0.0036236]
[1748356031246,1.38923411,109690.0,109680.0,0.0036236]
[1748356031428,0.94751411,109690.0,109680.0,0.2857652]
[1748356031636,0.58671411,109690.0,109680.0,0.3731452]
[1748356031947,1.02843411,109690.0,109680.0,0.1910036]
[1748356032243,0.58671411,109690.0,109680.0,0.1910036]
[1748356032445,1.02839411,109690.0,109680.0,0.3732652]
[1748356032739,1.02839411,109690.0,109680.0,0.1910036]
[1748356032942,1.02839411,109690.0,109680.0,0.3871281]
[1748356033130,1.02839411,109690.0,109680.0,0.0174865]
[1748356033333,1.58492034,109690.0,109680.0,0.0036236]
[1748356033543,1.58492034,109690.0,109680.0,0.0035036]
[1748356033742,1.58492034,109690.0,109680.0,0.00430196]
[1748356034045,1.58492034,109690.0,109680.0,0.00418196]
[1748356034248,1.58492034,109690.0,109680.0,0.00430196]
[1748356034537,1.14324034,109690.0,109680.0,0.00487471]
[1748356034761,1.58444034,109690.0,109680.0,0.00487471]
[1748356037347,1.58307123,109690.0,109680.0,0.00487471]
[1748356037836,1.387065,109690.0,109680.0,0.00487471]
[1748356038043,1.386985,109690.0,109680.0,0.00487471]
[1748356038240,0.946145,109690.0,109680.0,0.08347471]
[1748356038447,1.386945,109690.0,109680.0,0.08347471]
[1748356039639,0.946145,109690.0,109680.0,0.26573631]
[1748356039835,1.386625,109690.0,109680.0,0.26573631]
[1748356040034,1.386625,109690.0,109680.0,0.2658191]
[1748356040235,0.946145,109690.0,109680.0,0.2658191]
[1748356040435,1.025665,109690.0,109680.0,0.2658191]
[1748356040632,1.025665,109690.0,109680.0,0.26590189]
[1748356040848,1.025545,109690.0,109680.0,0.26590189]
[1748356041145,0.506245,109690.0,109680.0,0.37538189]
[1748356041345,0.726365,109690.0,109680.0,0.47538189]
[1748356041549,0.726365,109690.0,109680.0,0.37538189]
[1748356042146,0.726365,109690.0,109680.0,0.37546468]
[1748356042647,0.726365,109690.0,109680.0,0.37554747]
[1748356042845,0.764765,109690.0,109680.0,0.37554747]
[1748356043148,0.764765,109690.0,109680.0,0.08388866]
[1748356043444,0.764765,109690.0,109680.0,0.26611305]
[1748356043445,0.803065,109690.0,109680.0,0.26611305]
[1748356043844,0.803065,109690.0,109680.0,0.26631584]
[1748356044236,0.362945,109690.0,109680.0,0.62711584]
[1748356044437,0.186245,109690.0,109680.0,0.72711584]
[1748356044651,0.196245,109690.0,109680.0,0.72711584]
[1748356044943,0.186245,109690.0,109680.0,0.99284207]
[1748356045144,0.186245,109690.0,109680.0,0.92284207]
[1748356045452,0.186245,109690.0,109680.0,0.72699584]
[1748356045647,0.186245,109690.0,109680.0,0.72711584]
[1748356045648,0.014,109690.0,109680.0,0.72711584]
[1748356045834,0.014,109690.0,109680.0,0.83659584]
[1748356046142,0.004,109690.0,109680.0,1.03232207]
[1748356046647,0.004,109690.0,109680.0,0.99529856]
[1748356046945,0.004,109690.0,109680.0,1.19102479]
[1748356047149,0.004,109690.0,109680.0,1.14349788]
[1748356047750,0.004,109690.0,109680.0,1.14350945]
[1748356048248,0.004,109690.0,109680.0,1.13908714]
[1748356048444,0.004,109690.0,109680.0,1.09299083]
[1748356050438,0.004,109690.0,109680.0,1.37416283]
[1748356050642,0.2219786,109730.0,109720.0,0.2821952]
[1748356050854,0.1991,109730.0,109720.0,0.88474322]
[1748356051153,0.1593,109730.0,109720.0,0.88974622]
[1748356051353,0.1593,109730.0,109720.0,0.81431999]
[1748356051551,0.3021786,109730.0,109720.0,0.81431999]
[1748356051856,0.3081786,109730.0,109720.0,0.81431217]
[1748356052155,0.3131786,109730.0,109720.0,0.81431217]
[1748356052451,0.131,109730.0,109720.0,0.81431217]
[1748356052655,0.3131786,109730.0,109720.0,0.81431217]
[1748356053047,0.3131786,109730.0,109720.0,0.81497513]
[1748356053449,0.131,109730.0,109720.0,0.81497513]
[1748356053646,0.3131786,109730.0,109720.0,1.01070136]
[1748356053845,0.3131786,109730.0,109720.0,0.71497513]
[1748356054154,0.3919786,109730.0,109720.0,0.84441513]
[1748356054652,0.3919786,109730.0,109720.0,0.88353513]
[1748356054853,0.3619786,109730.0,109720.0,0.83740116]
[1748356055048,0.3619786,109730.0,109720.0,0.83752116]
[1748356055552,0.6327786,109730.0,109720.0,0.00578596]
[1748356055852,1.3889386,109730.0,109720.0,0.00578596]
[1748356056055,1.3889386,109730.0,109720.0,0.00566596]
[1748356056359,1.3889386,109730.0,109720.0,0.00578596]
[1748356056556,1.3889386,109730.0,109720.0,0.00566596]
[1748356057455,1.3889386,109730.0,109720.0,0.00578596]
[1748356058056,1.42485668,109730.0,109720.0,0.00578596]
[1748356058551,0.97869668,109730.0,109720.0,0.00578596]
[1748356058745,1.46047919,109730.0,109720.0,0.00578596]
[1748356059254,1.46031919,109730.0,109720.0,0.18798116]
[1748356060454,1.42440111,109730.0,109720.0,0.18798116]
[1748356061061,1.42440111,109730.0,109720.0,0.22648116]
[1748356061760,0.97868111,109730.0,109720.0,0.22648116]
[1748356061955,0.97868111,109730.0,109720.0,0.26948116]
[1748356061956,1.42364111,109730.0,109720.0,0.26948116]
[1748356062446,1.42362826,109730.0,109720.0,0.26948116]
[1748356062644,1.06266826,109730.0,109720.0,0.26948116]
[1748356062848,0.61786826,109730.0,109720.0,0.26948116]
[1748356063053,1.06258826,109730.0,109720.0,0.26948116]
[1748356063455,1.06246826,109730.0,109720.0,0.26948116]
[1748356064745,0.61786826,109730.0,109720.0,0.22648116]
[1748356064950,1.42302826,109730.0,109720.0,0.22636106]
[1748356065258,1.42302826,109730.0,109720.0,0.22648106]
[1748356068055,0.97866826,109730.0,109720.0,0.04428596]
[1748356068357,0.1821951,109720.0,109710.0,0.00013629]
[1748356068556,1.1454551,109720.0,109710.0,0.00013629]
[1748356068757,0.182245,109690.0,109680.0,0.12544789]
[1748356068955,1.256765,109690.0,109680.0,0.2428938]
[1748356069157,1.33664894,109690.0,109680.0,0.32840591]
[1748356069359,1.37944894,109690.0,109680.0,0.14626431]
[1748356069564,1.37944894,109690.0,109680.0,0.1823816]
[1748356070061,1.37944894,109690.0,109680.0,0.1822616]
[1748356070250,1.37944894,109690.0,109680.0,0.1823816]
[1748356070451,1.37944894,109690.0,109680.0,0.22882134]
[1748356070452,1.01908894,109690.0,109680.0,0.22882134]
[1748356070663,1.01908894,109690.0,109680.0,0.27252134]
[1748356071459,1.01908894,109690.0,109680.0,0.27452134]
[1748356071460,0.83008894,109690.0,109680.0,0.27452134]
[1748356072059,0.83108894,109690.0,109680.0,0.2300816]
[1748356072278,1.19188894,109690.0,109680.0,0.2300816]
[1748356072460,1.45188894,109690.0,109680.0,0.2280816]
[1748356072769,0.84008894,109690.0,109680.0,0.2260816]
[1748356073067,0.82008894,109690.0,109680.0,0.2280816]
[1748356073259,0.75108894,109690.0,109680.0,0.2280816]
[1748356073462,0.83108894,109690.0,109680.0,0.2280816]
[1748356073770,1.07108894,109690.0,109680.0,0.00212]
[1748356073967,1.07108894,109690.0,109680.0,0.1843816]
[1748356074158,1.0710904,109690.0,109680.0,0.1843816]
[1748356074357,1.035105,109690.0,109680.0,0.1843816]
[1748356074562,0.4087,109690.0,109680.0,0.1842616]
[1748356074756,0.50904,109690.0,109680.0,0.69161173]
[1748356075064,0.002,109690.0,109680.0,1.06691882]
[1748356075270,0.002,109690.0,109680.0,1.31550207]
[1748356075469,0.002,109690.0,109680.0,1.33550207]
[1748356076761,0.002,109690.0,109680.0,1.39550207]
[1748356076961,0.002,109690.0,109680.0,1.34907983]
[1748356077170,0.002,109690.0,109680.0,1.95061588]
[1748356077371,0.184245,109690.0,109680.0,0.4513816]
[1748356077563,1.64161123,109690.0,109680.0,0.14099069]
[1748356077763,1.64161123,109690.0,109680.0,0.2308]
[1748356077764,1.68621123,109690.0,109680.0,0.2308]
[1748356077971,1.490485,109690.0,109680.0,0.1843816]
[1748356078267,1.490485,109690.0,109680.0,0.23081169]
[1748356078472,1.490485,109690.0,109680.0,0.1843816]
[1748356078675,1.49964652,109690.0,109680.0,0.1843816]
[1748356079173,1.32964652,109690.0,109680.0,0.1843816]
[1748356079373,0.96884652,109690.0,109680.0,0.1843816]
[1748356080576,0.959685,109690.0,109680.0,0.2286816]
[1748356082868,0.959685,109690.0,109680.0,0.2704816]
[1748356083763,0.515645,109690.0,109680.0,0.2704816]
[1748356083968,0.515645,109690.0,109680.0,0.6312816]
[1748356083969,0.913525,109690.0,109680.0,0.6312816]
[1748356084173,0.913525,109690.0,109680.0,0.6757816]
[1748356084784,0.913525,109690.0,109680.0,0.3149816]
[1748356085171,0.913525,109690.0,109680.0,0.6757816]
[1748356085972,0.713525,109690.0,109680.0,0.3149816]
[1748356086568,0.713525,109690.0,109680.0,0.72223865]
[1748356086775,0.713525,109690.0,109680.0,0.45401094]
[1748356086981,0.713525,109690.0,109680.0,0.72223865]
[1748356086982,0.743525,109690.0,109680.0,0.72223865]
[1748356087176,0.743525,109690.0,109680.0,0.6757816]
[1748356087381,0.743525,109690.0,109680.0,0.72223848]
[1748356087781,0.301045,109690.0,109680.0,0.82223848]
[1748356087973,0.742725,109690.0,109680.0,0.72223848]
[1748356088369,0.742725,109690.0,109680.0,0.72023848]
[1748356088777,1.423525,109690.0,109680.0,0.13922865]
[1748356088980,1.66197123,109690.0,109680.0,0.13910865]
[1748356089180,1.466245,109690.0,109680.0,0.19214244]
[1748356089388,1.50229093,109690.0,109680.0,0.19214244]
[1748356089887,1.50229093,109690.0,109680.0,0.13922865]
[1748356090079,1.69801716,109690.0,109680.0,0.13922865]
[1748356090282,1.69801716,109690.0,109680.0,0.0465811]
[1748356090582,1.69801716,109690.0,109680.0,0.0464611]
[1748356090783,1.69801716,109690.0,109680.0,0.0465811]
[1748356090985,1.69801716,109690.0,109680.0,0.00012]
[1748356090986,1.466245,109690.0,109680.0,0.00012]
[1748356091185,1.50227724,109690.0,109680.0,0.00012]
[1748356091687,1.50115724,109690.0,109680.0,0.04658644]
[1748356091893,1.50315724,109690.0,109680.0,0.04758644]
[1748356092482,1.55953062,109690.0,109680.0,0.04758644]
[1748356092978,1.55853062,109690.0,109680.0,0.00112]
[1748356093581,1.56053062,109690.0,109680.0,0.00112]
[1748356094487,1.56053062,109690.0,109670.0,0.00013629]
[1748356094488,0.1822616,109680.0,109670.0,0.00013629]
[1748356094691,1.17992007,109680.0,109670.0,0.04661145]
[1748356094988,1.17992007,109680.0,109670.0,0.00013629]
[1748356095193,1.17992007,109680.0,109670.0,0.00012007]
[1748356095194,1.27110008,109680.0,109670.0,0.00012007]
[1748356095489,0.1822948,109660.0,109650.0,0.01787883]
[1748356095688,0.1822948,109660.0,109650.0,0.01412293]
[1748356095689,1.3345748,109660.0,109650.0,0.01412293]
[1748356095990,1.3764748,109660.0,109650.0,0.00136788]
[1748356096189,1.4196748,109660.0,109650.0,0.01426194]
[1748356096394,1.45569714,109660.0,109650.0,0.00148788]
[1748356096690,1.45569714,109660.0,109650.0,0.18379928]
[1748356096987,1.45669714,109660.0,109650.0,0.01426626]
[1748356097192,1.45669714,109660.0,109650.0,0.01426495]
[1748356097491,1.45669714,109660.0,109650.0,0.00148788]
[1748356098086,1.45869714,109660.0,109650.0,0.00136788]
[1748356098284,1.45869714,109660.0,109650.0,0.0143601]
[1748356098484,1.45869714,109660.0,109650.0,0.00148788]
[1748356098485,1.4226748,109660.0,109650.0,0.00148788]
[1748356098893,1.4226748,109660.0,109650.0,0.01435719]
[1748356099090,0.9811948,109660.0,109650.0,0.18379928]
[1748356099285,1.0613148,109660.0,109650.0,0.18379928]
[1748356099490,1.4221148,109660.0,109650.0,0.04468788]
[1748356099691,1.4221148,109660.0,109650.0,0.23979112]
[1748356099993,1.4221148,109660.0,109650.0,0.19662792]
[1748356100190,1.4221148,109660.0,109650.0,0.18379938]
[1748356100489,1.4221148,109660.0,109650.0,0.00148788]
[1748356100693,0.1823115,109650.0,109640.0,0.00013629]
[1748356100893,1.1255115,109650.0,109640.0,9e-08]
[1748356101591,0.37805433,109640.0,109630.0,0.0013681]
[1748356101795,1.62947433,109640.0,109630.0,0.0013681]
[1748356102384,1.62951433,109640.0,109630.0,0.0013681]
[1748356102794,1.6387992,109640.0,109630.0,0.0013681]
[1748356103391,1.65272159,109640.0,109630.0,0.0013681]
[1748356103798,1.45799536,109640.0,109630.0,0.0013681]
[1748356104293,1.45899536,109640.0,109630.0,0.0023681]
[1748356105098,1.01803536,109640.0,109630.0,0.0023681]
[1748356105401,1.56807536,109640.0,109630.0,0.0023681]
[1748356105590,1.01803536,109640.0,109630.0,0.1847128]
[1748356105790,0.65723536,109640.0,109630.0,0.1847128]
[1748356106098,1.09751536,109640.0,109630.0,0.2258128]
[1748356106295,1.09751536,109640.0,109630.0,0.2653447]
[1748356108202,0.65723536,109640.0,109630.0,0.2653447]
[1748356108496,1.09703536,109640.0,109630.0,0.2653447]
[1748356108994,1.09691536,109640.0,109630.0,0.2653447]
[1748356109196,0.8435881,109640.0,109630.0,0.2653447]
[1748356109602,1.0135881,109640.0,109630.0,0.2653447]
[1748356111401,0.5740281,109640.0,109630.0,0.2653447]
[1748356111603,1.0131081,109640.0,109630.0,0.2653447]
[1748356112502,1.02201536,109640.0,109630.0,0.2653447]
[1748356112893,1.02201536,109640.0,109630.0,0.6261447]
[1748356113295,0.58293536,109640.0,109630.0,0.73908055]
[1748356113597,1.02201536,109640.0,109630.0,0.65244]
[1748356113802,1.02201536,109640.0,109630.0,0.7347847]
[1748356114004,1.02201536,109640.0,109630.0,0.3739847]
[1748356114796,1.02201536,109640.0,109630.0,0.38692799]
[1748356115099,0.0421,109640.0,109630.0,0.8477238]
[1748356115298,0.2143281,109640.0,109630.0,0.88031243]
[1748356115610,0.1843281,109640.0,109630.0,0.8347847]
[1748356115903,0.1843281,109640.0,109630.0,0.84757197]
[1748356117009,0.1843281,109640.0,109630.0,0.89312893]
[1748356117322,0.1843281,109640.0,109630.0,0.84757197]
[1748356117901,0.002,109640.0,109630.0,1.0532982]
[1748356118100,0.002,109640.0,109630.0,1.15077206]
[1748356118300,0.002,109640.0,109630.0,1.25917109]
[1748356119196,0.002,109640.0,109630.0,1.25479647]
[1748356119804,0.002,109640.0,109630.0,1.78480847]
[1748356120403,0.002,109640.0,109630.0,1.73288526]
[1748356120714,0.002,109640.0,109630.0,1.80180533]
[1748356121009,0.002,109640.0,109630.0,2.30180533]
[1748356121509,0.00136888,109670.0,109660.0,0.1822948]
[1748356121707,0.00136888,109670.0,109660.0,1.4184348]
[1748356121912,0.18364708,109670.0,109660.0,1.4605348]
[1748356122118,0.18364708,109670.0,109660.0,0.8797348]
[1748356122119,0.21364708,109670.0,109660.0,0.8797348]
[1748356122304,0.21364708,109670.0,109660.0,0.7700948]
[1748356122504,0.29834708,109670.0,109660.0,0.7798548]
[1748356122811,0.29834708,109670.0,109660.0,0.8798548]
[1748356123011,0.21364708,109670.0,109660.0,0.8798548]
[1748356123913,0.03936888,109670.0,109660.0,0.9253201]
[1748356124117,0.19164708,109670.0,109660.0,0.9253201]
[1748356124715,0.19064708,109670.0,109660.0,0.9253201]
[1748356125406,0.00836888,109670.0,109660.0,0.9253201]
[1748356125606,0.19064708,109670.0,109660.0,1.2861201]
[1748356126311,0.00836888,109670.0,109660.0,1.2861201]
[1748356126514,0.19064708,109670.0,109660.0,1.2861201]
[1748356126813,0.00013629,109680.0,109670.0,0.1822782]
[1748356127017,0.18239789,109680.0,109670.0,0.96492758]
[1748356127218,0.18239789,109680.0,109670.0,0.76920135]
[1748356127420,0.22399789,109680.0,109670.0,0.87880135]
[1748356127722,0.47176832,109710.0,109690.0,0.1366758]
[1748356127723,0.04692262,109710.0,109690.0,0.1366758]
[1748356128013,0.62640042,109710.0,109700.0,0.2822283]
[1748356128318,0.62640042,109710.0,109700.0,0.3652283]
[1748356128319,0.66800042,109710.0,109700.0,0.3652283]
[1748356128717,0.66800042,109710.0,109700.0,0.2652283]
[1748356129110,0.67200042,109710.0,109700.0,0.2662283]
[1748356129915,0.67200042,109710.0,109700.0,0.4036]
[1748356130114,0.67200042,109710.0,109700.0,0.3331884]
[1748356130315,0.67200042,109710.0,109700.0,0.001]
[1748356130518,0.67200042,109710.0,109700.0,0.18765061]
[1748356130714,1.11228042,109710.0,109700.0,0.18765061]
[1748356130912,1.11252042,109710.0,109700.0,0.18765061]
[1748356131219,1.11452042,109710.0,109700.0,0.18765061]
[1748356131424,1.11452042,109710.0,109700.0,0.1832283]
[1748356132517,1.11452042,109710.0,109700.0,0.001]
[1748356132713,1.11452042,109710.0,109700.0,0.1832284]
[1748356132914,1.11468042,109710.0,109700.0,0.1832284]
[1748356134215,1.11468042,109710.0,109700.0,0.5440284]
[1748356134519,1.11468042,109710.0,109670.0,0.01721528]
[1748356134520,0.0455571,109700.0,109670.0,0.01721528]
[1748356134823,0.1822616,109680.0,109670.0,0.19949348]
[1748356135025,0.8830616,109680.0,109670.0,0.01721528]
[1748356135327,1.0076616,109680.0,109670.0,0.01721528]
[1748356135530,1.01668865,109680.0,109670.0,0.01721528]
[1748356135716,1.01668865,109680.0,109670.0,0.01821528]
[1748356135916,1.01668865,109680.0,109670.0,0.001]
[1748356136826,1.05236839,109680.0,109670.0,0.001]
[1748356137019,0.1822782,109670.0,109660.0,0.00025629]
[1748356137328,1.60368443,109670.0,109660.0,0.00025629]
[1748356138118,0.1823281,109640.0,109630.0,0.19511767]
[1748356138318,0.50343645,109640.0,109630.0,0.34058186]
[1748356138528,0.58763645,109640.0,109630.0,0.34058186]
[1748356139525,0.58863645,109640.0,109630.0,0.34258186]
[1748356139824,0.58863645,109640.0,109630.0,0.35548741]
[1748356140024,0.58863645,109640.0,109630.0,0.30013197]
[1748356140719,0.58863645,109640.0,109630.0,0.11778727]
[1748356140918,0.58863645,109640.0,109630.0,0.30013197]
[1748356141120,0.58863645,109640.0,109630.0,0.11778727]
[1748356141424,0.58863645,109640.0,109630.0,0.30013197]
[1748356141618,0.58863645,109640.0,109630.0,0.35854989]
[1748356142030,0.58863645,109640.0,109630.0,0.13074211]
[1748356142229,0.58863645,109640.0,109630.0,0.03065255]
[1748356142230,1.14516268,109640.0,109630.0,0.03065255]
[1748356142619,1.14516268,109640.0,109630.0,0.0306925]
[1748356143016,1.14516268,109640.0,109630.0,0.01778727]
[1748356143222,1.14516268,109640.0,109630.0,0.03061995]
[1748356143619,1.14516268,109640.0,109630.0,0.01778727]
[1748356144019,1.14516268,109640.0,109630.0,0.04020663]
[1748356144232,1.14516268,109640.0,109630.0,0.02849701]
[1748356144233,1.18073402,109640.0,109630.0,0.02849701]
[1748356144529,1.18073402,109640.0,109630.0,0.04125055]
[1748356144530,1.18072622,109640.0,109630.0,0.04125055]
[1748356144727,1.14516268,109640.0,109630.0,0.04124769]
[1748356145030,1.14416268,109640.0,109630.0,0.03924769]
[1748356145230,1.14416268,109640.0,109630.0,0.04024769]
[1748356145731,1.17971908,109640.0,109630.0,0.04024769]
[1748356145932,1.17971908,109640.0,109630.0,0.05299901]
[1748356146230,1.30153272,109640.0,109630.0,0.05299901]
[1748356146425,1.30153375,109640.0,109630.0,0.05295251]
[1748356146724,1.30153375,109640.0,109630.0,0.05737482]
[1748356146929,1.30153375,109640.0,109630.0,0.0573971]
[1748356147132,1.30153375,109640.0,109630.0,0.05739804]
[1748356148035,1.30153375,109640.0,109630.0,0.05739973]
[1748356148325,1.30153375,109640.0,109630.0,0.05742532]
[1748356148534,1.30153375,109640.0,109630.0,0.05742759]
[1748356148730,1.30153375,109640.0,109630.0,0.05743025]
[1748356149031,1.30153375,109640.0,109630.0,0.04467]
[1748356149327,1.26597632,109640.0,109630.0,0.04467]
[1748356149535,1.30151439,109640.0,109630.0,0.04467]
[1748356149736,1.30151439,109640.0,109630.0,0.05745497]
[1748356149934,1.3370444,109640.0,109630.0,0.04467]
[1748356150628,1.30151439,109640.0,109630.0,0.04467]
[1748356150837,1.30150855,109640.0,109630.0,0.04467]
[1748356151836,1.10578232,109640.0,109630.0,0.04467]
[1748356152140,1.30150855,109640.0,109630.0,0.04467]
[1748356152330,1.39272055,109640.0,109630.0,1e-07]
[1748356152838,1.39272055,109640.0,109610.0,0.08396833]
[1748356152839,0.1823614,109620.0,109610.0,0.08396833]
[1748356153030,1.3123214,109620.0,109610.0,0.08396833]
[1748356153236,1.3530214,109620.0,109610.0,0.08396833]
[1748356153434,1.3961214,109620.0,109610.0,0.08396833]
[1748356153835,1.3961214,109620.0,109610.0,0.04216833]
[1748356154037,1.3971214,109620.0,109610.0,0.04616833]
[1748356154639,1.3981214,109620.0,109610.0,0.09316833]
[1748356155031,1.3971214,109620.0,109610.0,0.08916833]
[1748356155233,1.3981214,109620.0,109610.0,0.08916833]
[1748356155839,0.3981614,109620.0,109610.0,0.77234633]
[1748356156038,0.2274614,109620.0,109610.0,0.81284633]
[1748356156240,0.2274614,109620.0,109610.0,0.12566833]
[1748356156241,0.9809614,109620.0,109610.0,0.12566833]
[1748356156441,0.6201614,109620.0,109610.0,0.76884633]
[1748356156646,0.5774614,109620.0,109610.0,0.76884633]
[1748356156837,0.5774614,109620.0,109610.0,0.40804633]
[1748356157036,0.4374614,109620.0,109610.0,0.40804633]
[1748356157238,0.4374614,109620.0,109610.0,0.76884633]
[1748356157636,0.4374614,109620.0,109610.0,0.40804633]
[1748356157940,0.4374614,109620.0,109610.0,0.76884633]
[1748356158140,0.4374614,109620.0,109610.0,0.40804633]
[1748356158344,0.4374614,109620.0,109610.0,0.76884633]
[1748356159246,0.4374614,109620.0,109610.0,0.40804633]
[1748356159546,0.4374614,109620.0,109610.0,0.30804633]
[1748356159841,0.4789614,109620.0,109610.0,0.31246864]
[1748356160043,0.4374614,109620.0,109610.0,0.67326864]
[1748356160846,0.4374614,109620.0,109610.0,0.77326864]
[1748356161343,0.3943614,109620.0,109610.0,0.77326864]
[1748356162046,0.3943614,109620.0,109610.0,0.77190031]
[1748356163344,0.3943614,109620.0,109610.0,0.67190031]
[1748356163541,0.3943614,109620.0,109610.0,0.77190031]
[1748356163736,0.3953614,109620.0,109610.0,0.77190031]
[1748356164848,0.3953614,109620.0,109610.0,0.31110031]
[1748356165034,0.4795614,109620.0,109610.0,0.31110031]
[1748356165237,0.4795614,109620.0,109610.0,0.31210031]
[1748356165238,0.4805614,109620.0,109610.0,0.31210031]
[1748356166248,0.67993424,109620.0,109610.0,0.31210031]
[1748356166939,1.04073424,109620.0,109610.0,0.12972231]
[1748356167144,1.04073424,109620.0,109610.0,0.1253]
[1748356167550,1.04073424,109620.0,109610.0,0.17127341]
[1748356167749,1.04073424,109620.0,109610.0,0.1253]
[1748356168059,1.04073424,109620.0,109610.0,0.04622231]
[1748356168060,1.13269283,109620.0,109610.0,0.04622231]
[1748356168553,0.93331999,109620.0,109610.0,0.04622231]
[1748356168758,1.13269283,109620.0,109610.0,0.04622231]
[1748356169046,1.13269283,109620.0,109610.0,0.09220326]
[1748356169434,1.13269283,109620.0,109610.0,0.09220895]
[1748356169638,1.09694185,109620.0,109610.0,0.09220895]
[1748356169841,1.13239412,109620.0,109610.0,0.09220895]
[1748356170641,1.13239412,109620.0,109610.0,0.00542231]
[1748356171350,0.93302128,109620.0,109610.0,0.23060031]
[1748356171648,1.13239412,109620.0,109610.0,0.27660044]
[1748356172043,1.13239412,109620.0,109610.0,0.23060031]
[1748356172249,1.13239412,109620.0,109610.0,0.27150031]
[1748356173348,1.57211412,109620.0,109610.0,0.27150031]
[1748356173651,1.57211412,109620.0,109610.0,0.31260031]
[1748356173851,1.53666185,109620.0,109610.0,0.31260031]
[1748356174045,1.57213529,109620.0,109610.0,0.31260031]
[1748356174450,1.21113529,109620.0,109610.0,0.31260031]
[1748356174752,1.15492768,109620.0,109610.0,0.31260031]
[1748356174953,0.95539484,109620.0,109610.0,0.31260031]
[1748356175451,0.95547484,109620.0,109610.0,0.31260031]
[1748356175955,0.91367484,109620.0,109610.0,0.67340031]
[1748356176544,0.95647484,109620.0,109610.0,0.67340031]
[1748356176744,0.95647484,109620.0,109610.0,0.31260031]
[1748356177365,0.22183484,109620.0,109610.0,0.92859675]
[1748356177853,0.55185497,109620.0,109610.0,0.92859482]
[1748356178741,0.59555497,109620.0,109610.0,0.92859482]
[1748356180847,0.59555497,109620.0,109610.0,0.88260031]
[1748356181955,0.004,109620.0,109610.0,1.08197315]
[1748356182157,0.03949643,109620.0,109610.0,1.18157114]
[1748356182359,0.004,109620.0,109610.0,1.29940525]
[1748356182651,0.004,109620.0,109610.0,1.25340881]
[1748356182851,0.004,109620.0,109610.0,1.48938514]
[1748356183056,1.09653414,109620.0,109610.0,0.02325642]
[1748356183255,1.26193785,109620.0,109610.0,0.2952269]
[1748356183449,1.06256501,109620.0,109610.0,0.27739279]
[1748356183843,0.50176501,109620.0,109610.0,0.27739279]
[1748356184042,0.92113785,109620.0,109610.0,0.05141479]
[1748356184253,1.28193785,109620.0,109610.0,0.23379279]
[1748356184452,1.28193785,109620.0,109610.0,0.05141479]
[1748356184748,1.28193785,109620.0,109610.0,0.23379279]
[1748356185253,1.27893785,109620.0,109610.0,0.23379279]
[1748356185857,1.31444091,109620.0,109610.0,0.23379279]
[1748356187051,0.95364091,109620.0,109610.0,0.23379279]
[1748356187251,1.31444091,109620.0,109610.0,0.23379279]
[1748356187652,1.07956436,109620.0,109610.0,0.23379279]
[1748356187848,1.07956436,109620.0,109610.0,0.05141479]
[1748356187849,1.2789372,109620.0,109610.0,0.05141479]
[1748356188158,1.41945622,109620.0,109610.0,0.05141479]
[1748356188348,1.36324861,109620.0,109610.0,0.04699248]
[1748356189350,1.36324861,109620.0,109610.0,0.04685254]
[1748356189758,1.36324861,109620.0,109610.0,0.04684352]
[1748356189960,1.36324861,109620.0,109610.0,0.001]
[1748356190161,1.24343414,109620.0,109610.0,0.001]
[1748356191152,0.6832613,109620.0,109610.0,0.001]
[1748356191358,1.68155414,109620.0,109610.0,0.05125395]
[1748356191657,1.68155414,109620.0,109610.0,0.23363195]
[1748356192062,1.68155414,109620.0,109610.0,0.05125395]